bitfinex-derivatives/quotes_ETHF0:USTF0_20250416
["timestamp","ask_amount","ask_price","bid_price","bid_amount"]
[1744785621066,1.27785593,1577.0,1576.9,4.47621]
[1744785621766,0.00952593,1577.0,1576.9,4.47621]
[1744785622170,1.27785593,1577.0,1576.9,4.47621]
[1744785622668,0.00952593,1577.0,1576.9,4.47621]
[1744785622967,0.00952593,1577.0,1576.8,1.26843]
[1744785623270,1.26841,1576.9,1576.8,1.26843]
[1744785623569,1.26849,1576.8,1576.7,2.13811]
[1744785623869,1.26857,1576.7,1576.6,8.41032997]
[1744785624567,1.26865,1576.6,1576.5,11.61812997]
[1744785624763,1.26865,1576.6,1576.5,8.41032997]
[1744785624764,3.73985,1576.6,1576.5,8.41032997]
[1744785626365,2.14165,1576.6,1576.5,11.35535997]
[1744785627366,2.14165,1576.6,1576.5,10.08662997]
[1744785628475,2.95605,1576.6,1576.5,10.08662997]
[1744785628671,13.06684,1576.6,1576.2,40.8]
[1744785628868,1.26889,1576.3,1576.2,1.717]
[1744785629273,4.55409,1576.3,1576.2,1.717]
[1744785629774,1.26889,1576.3,1576.2,1.717]
[1744785629977,1.26889,1576.3,1576.2,2.5893]
[1744785630273,9.662,1576.6,1576.5,1.26873]
[1744785630470,1.26878,1576.5,1576.4,1.26878]
[1744785631276,1.26882,1576.4,1576.3,1.26883]
[1744785632078,1.2688,1576.5,1576.4,1.2688]
[1744785634077,1.26869,1576.6,1576.5,1.26869]
[1744785634484,9.1438,1576.9,1576.5,11.37963]
[1744785634776,1.26853,1576.8,1576.7,1.26854]
[1744785635177,1.26853,1576.8,1576.7,2.11444]
[1744785635981,1.60952593,1577.0,1576.7,0.8459]
[1744785636180,1.27791593,1577.0,1576.9,1.26841]
[1744785636780,0.00952593,1577.0,1576.9,1.26841]
[1744785637277,0.00952593,1577.0,1576.9,4.47621]
[1744785642883,0.00952593,1577.0,1576.9,5.32321]
[1744785646685,0.00952593,1577.0,1576.9,6.92461]
[1744785650783,0.00952593,1577.0,1576.9,6.94950739]
[1744785654289,1.26814,1577.3,1577.2,1.26817]
[1744785654993,1.26814,1577.3,1577.2,3.81596739]
[1744785655394,2.97835,1577.4,1577.3,1.26809]
[1744785655694,1.27439467,1577.4,1577.3,3.78659]
[1744785655895,1.27439467,1577.4,1577.3,44.61148739]
[1744785656093,13.66060168,1577.8,1577.7,1.26776]
[1744785656288,11.72048168,1577.8,1577.7,1.26776]
[1744785656793,11.72048168,1577.8,1577.7,1.29265739]
[1744785657191,11.72048168,1577.8,1577.7,3.01475739]
[1744785657391,10.45280168,1577.8,1577.7,3.01475739]
[1744785657594,1.26768,1577.8,1577.7,3.01475739]
[1744785657990,13.33313168,1577.9,1577.8,1.26768]
[1744785658295,10.45280168,1577.9,1577.8,2.97658]
[1744785658502,10.45280168,1577.9,1577.8,7.59358]
[1744785658894,10.45280168,1577.9,1577.8,7.61847739]
[1744785659498,10.45280168,1577.9,1577.8,7.64340083]
[1744785659701,10.45280168,1577.9,1577.8,48.44340083]
[1744785660094,11.72040168,1577.9,1577.8,48.44340083]
[1744785660800,10.45280168,1577.9,1577.8,48.44340083]
[1744785662002,2.10483,1578.0,1577.8,48.44340083]
[1744785662301,2.10483,1578.0,1577.9,6.2311]
[1744785662697,2.88691,1578.1,1578.0,1.26752]
[1744785662900,3.69441,1578.1,1578.0,1.7557]
[1744785663803,3.69441,1578.1,1578.0,1.80552083]
[1744785665699,3.69441,1578.1,1578.0,0.04982083]
[1744785666101,8.69441,1578.1,1578.0,0.04982083]
[1744785668404,13.30241,1578.1,1578.0,0.04982083]
[1744785670995,3.85483,1577.5,1577.4,40.8]
[1744785671198,1.26801,1577.4,1577.3,0.00952593]
[1744785671401,1.26801,1577.4,1577.3,2.87151593]
[1744785671598,0.8799,1577.5,1577.4,1.26801]
[1744785671599,1.26799,1577.5,1577.4,1.26801]
[1744785671799,1.26801,1577.4,1577.3,0.00952593]
[1744785672000,2.97501,1577.4,1577.3,0.00952593]
[1744785672305,1.26801,1577.4,1577.3,40.80952593]
[1744785675109,2.07911,1577.4,1577.3,40.80952593]
[1744785675502,2.07911,1577.4,1577.3,0.00952593]
[1744785676006,3.75831,1577.4,1577.3,40.80952593]
[1744785676208,3.75831,1577.4,1577.3,0.00952593]
[1744785681512,2.07911,1577.4,1577.3,0.00952593]
[1744785681715,1.26801,1577.4,1577.3,0.00952593]
[1744785685714,1.26801,1577.4,1577.3,1.72142593]
[1744785689222,2.94491,1577.4,1577.3,1.72142593]
[1744785689422,1.26852,1576.8,1576.7,1.2685]
[1744785689721,1.26852,1576.8,1576.7,2.5006]
[1744785690720,1.26852,1576.8,1576.7,3.3168]
[1744785690920,1.26847,1576.9,1576.8,1.26847]
[1744785691121,1.26847,1576.9,1576.8,2.92037]
[1744785692119,1.26847,1576.9,1576.8,1.6519]
[1744785692821,1.26847,1576.9,1576.8,7.92039]
[1744785693025,4.601,1577.3,1577.1,1.26819]
[1744785693222,5.86909,1577.3,1577.2,3.3078]
[1744785693419,1.26809,1577.3,1577.2,3.3078]
[1744785697627,1.26809,1577.3,1577.2,2.4514]
[1744785697819,4.47589,1577.3,1577.2,1.6466]
[1744785698124,6.18359,1577.3,1577.2,1.6466]
[1744785699129,7.02319,1577.3,1577.2,1.6466]
[1744785701328,1.26809,1577.3,1577.2,1.6466]
[1744785702118,1.26809,1577.3,1577.2,2.4503]
[1744785704829,4.47589,1577.3,1577.2,2.4503]
[1744785705127,6.18309,1577.3,1577.2,2.4503]
[1744785705530,2.97529,1577.3,1577.2,2.4503]
[1744785705725,1.26841,1576.9,1576.8,4.47624]
[1744785705919,1.26836,1577.0,1576.9,1.26835]
[1744785707421,1.26836,1577.0,1576.9,3.76775]
[1744785711832,1.26836,1577.0,1576.9,2.4994]
[1744785712032,1.26836,1577.0,1576.9,1.6447]
[1744785712539,1.26849,1576.8,1576.7,1.7035]
[1744785712833,1.26857,1576.7,1576.6,0.00952593]
[1744785713638,1.26857,1576.7,1576.6,1.27817593]
[1744785713828,1.26857,1576.7,1576.6,2.88667593]
[1744785714432,1.27807593,1576.8,1576.7,1.26857]
[1744785714635,1.27807593,1576.8,1576.7,2.87707]
[1744785715639,1.27807593,1576.8,1576.7,1.6085]
[1744785720744,6.14877593,1576.8,1576.7,1.6085]
[1744785720937,6.14877593,1576.8,1576.6,0.00952593]
[1744785720938,1.26857,1576.7,1576.6,0.00952593]
[1744785721130,2.93147,1576.7,1576.6,0.00952593]
[1744785732149,8.86747,1576.7,1576.6,5.93e-06]
[1744785732751,6.34434,1576.4,1576.0,3.2078]
[1744785732953,6.34434,1576.4,1576.1,0.8652]
[1744785732954,1.26897,1576.2,1576.1,0.8652]
[1744785733753,6.16717,1576.2,1576.1,0.8652]
[1744785734351,4.47677,1576.2,1576.1,0.8652]
[1744785736060,4.47677,1576.2,1576.1,2.5758]
[1744785737058,1.26897,1576.2,1576.1,7.5758]
[1744785738353,1.26897,1576.2,1576.1,8.84485]
[1744785738655,1.26888,1576.4,1576.3,1.26886]
[1744785738855,3.17188,1576.5,1576.2,3.82563]
[1744785739054,1.26881,1576.4,1576.3,45.7491]
[1744785739249,1.26881,1576.4,1576.3,44.0078]
[1744785741666,1.26881,1576.4,1576.3,45.27669]
[1744785742267,1.26881,1576.4,1576.3,44.0078]
[1744785743265,1.26881,1576.4,1576.3,45.27669]
[1744785743865,1.26881,1576.4,1576.3,44.0078]
[1744785744263,1.26881,1576.4,1576.3,45.27669]
[1744785744862,1.26881,1576.4,1576.3,44.0078]
[1744785747073,3.18088593,1576.8,1576.3,52.17986]
[1744785747268,1.26865,1576.7,1576.6,4.47643]
[1744785747770,0.00952593,1576.8,1576.6,3.2078]
[1744785747971,0.00952593,1576.8,1576.6,44.0078]
[1744785748172,1.27808593,1576.8,1576.7,1.26857]
[1744785748769,1.26857,1576.7,1576.6,45.27639]
[1744785752870,1.27806593,1576.8,1576.7,1.26857]
[1744785753073,1.27806593,1576.8,1576.7,5.85657]
[1744785755674,1.27806593,1576.8,1576.7,7.47227]
[1744785759176,1.27801593,1576.8,1576.7,7.47227]
[1744785763873,1.7272,1577.2,1576.9,1.26831]
[1744785764080,1.26835,1577.1,1577.0,2.93921]
[1744785764971,1.26835,1577.1,1577.0,3.74471]
[1744785765170,1.26835,1577.1,1577.0,6.95251]
[1744785765377,0.00952593,1577.2,1577.1,1.26825]
[1744785765572,0.00952593,1577.2,1577.1,3.02995]
[1744785767483,18.20906168,1577.8,1577.5,1.26789]
[1744785767782,1.26789,1577.6,1577.5,1.26789]
[1744785767977,1.26782,1577.7,1577.6,1.26781]
[1744785768581,1.26782,1577.7,1577.6,46.95611]
[1744785769078,10.46232761,1577.8,1577.7,1.26776]
[1744785769283,10.46232761,1577.8,1577.7,2.94826]
[1744785769480,11.73000761,1577.8,1577.7,2.94826]
[1744785769683,10.46232761,1577.8,1577.7,2.94826]
[1744785770280,0.00952593,1577.8,1577.7,2.94826]
[1744785770473,1.27720593,1577.8,1577.7,2.94826]
[1744785773476,1.26776,1577.7,1577.6,44.0078]
[1744785773784,3.79486,1577.7,1577.6,44.0078]
[1744785773979,2.5271,1577.7,1577.6,45.27564]
[1744785774181,1.27724593,1577.8,1577.7,1.26776]
[1744785774385,0.00952593,1577.8,1577.7,2.99556]
[1744785774684,0.00952593,1577.8,1577.7,4.66916]
[1744785775383,1.27720593,1577.8,1577.7,4.66916]
[1744785776383,0.00952593,1577.8,1577.7,4.66916]
[1744785776571,0.00952593,1577.8,1577.7,9.25416]
[1744785777986,1.27720593,1577.8,1577.7,4.585]
[1744785778186,0.00952593,1577.8,1577.7,5.85276]
[1744785778381,0.00952593,1577.8,1577.7,7.48266]
[1744785781287,1.27720593,1577.8,1577.7,7.48266]
[1744785781477,3.69840593,1577.8,1577.7,7.48266]
[1744785782481,1.26776,1577.7,1577.6,44.0078]
[1744785782690,3.72546,1577.7,1577.6,44.0078]
[1744785782887,11.93326,1577.7,1577.6,40.8]
[1744785783393,1.6225,1577.7,1577.6,42.06784]
[1744785783890,2.89026,1577.7,1577.6,43.80204]
[1744785785691,1.6225,1577.7,1577.6,43.80204]
[1744785785894,2.13343593,1577.8,1577.7,1.26776]
[1744785786190,1.27723593,1577.8,1577.7,4.58036]
[1744785788087,1.27723593,1577.8,1577.7,7.78816]
[1744785788287,0.00952593,1577.8,1577.7,7.78816]
[1744785789797,1.26751,1578.1,1578.0,1.26752]
[1744785790185,2.93521,1578.1,1578.0,1.26752]
[1744785790489,2.93521,1578.1,1578.0,2.95292]
[1744785791188,2.93521,1578.1,1578.0,1.6854]
[1744785791587,2.93521,1578.1,1578.0,2.95292]
[1744785792189,1.26752,1578.0,1577.9,3.21732593]
[1744785792490,2.88982,1578.0,1577.9,4.48492593]
[1744785793193,2.88982,1578.0,1577.9,3.21732593]
[1744785793387,2.88982,1578.0,1577.9,0.00952593]
[1744785798812,1.26776,1577.7,1577.6,42.06784]
[1744785799099,1.26776,1577.7,1577.6,42.5435]
[1744785799498,1.26776,1577.7,1577.6,40.8]
[1744785800896,1.26774,1577.8,1577.7,1.26776]
[1744785801089,1.26774,1577.8,1577.7,3.87856]
[1744785802503,4.57335,1577.9,1577.8,1.26768]
[1744785802703,1.26765,1577.9,1577.8,3.00298]
[1744785803000,1.26765,1577.9,1577.8,3.81828]
[1744785804895,1.26765,1577.9,1577.8,3.00298]
[1744785808002,1.26765,1577.9,1577.8,1.7353]
[1744785808204,3.16929,1577.8,1577.5,3.21732593]
[1744785808403,1.26784,1577.6,1577.5,4.98032593]
[1744785808602,1.26784,1577.6,1577.5,6.24825593]
[1744785808805,1.26784,1577.6,1577.5,47.04825593]
[1744785809306,1.26784,1577.6,1577.5,45.78032593]
[1744785810102,1.26784,1577.6,1577.5,47.04825593]
[1744785810304,1.26784,1577.6,1577.5,45.78032593]
[1744785810708,1.26784,1577.6,1577.5,47.04825593]
[1744785811218,1.26783,1577.7,1577.6,1.26781]
[1744785811415,1.26783,1577.7,1577.6,1.6939]
[1744785812014,1.26784,1577.6,1577.5,40.80952593]
[1744785812213,1.26784,1577.6,1577.5,0.00952593]
[1744785812622,1.26784,1577.6,1577.5,40.80952593]
[1744785813316,1.26784,1577.6,1577.5,42.48272593]
[1744785814230,9.47564,1577.6,1577.5,0.00952593]
[1744785814519,1.26817,1577.2,1577.1,9.25072997]
[1744785815325,1.26817,1577.2,1577.1,10.51897997]
[1744785815526,1.26817,1577.2,1577.1,12.19217997]
[1744785816223,1.26817,1577.2,1577.1,3.78185]
[1744785816631,1.26817,1577.2,1577.1,2.5136]
[1744785817128,1.26817,1577.2,1577.1,3.78185]
[1744785817625,0.00952593,1577.3,1577.2,1.26817]
[1744785817820,1.27761593,1577.3,1577.2,2.89877]
[1744785818320,0.00952593,1577.3,1577.2,2.89877]
[1744785819833,0.00952593,1577.3,1577.2,7.89877]
[1744785820419,0.00952593,1577.3,1577.2,2.89877]
[1744785821018,0.00952593,1577.3,1577.2,43.69877]
[1744785822724,0.00952593,1577.3,1577.2,46.90657]
[1744785824220,1.27761593,1577.3,1577.2,46.90657]
[1744785825333,0.00952593,1577.3,1577.2,46.90657]
[1744785830328,1.27761593,1577.3,1577.2,46.90657]
[1744785832733,1.27761593,1577.3,1577.2,45.6384]
[1744785833132,3.04231593,1577.3,1577.2,45.6384]
[1744785833426,3.04231593,1577.3,1577.2,42.4306]
[1744785833727,3.04231593,1577.3,1577.2,40.8]
[1744785834030,3.04231593,1577.3,1577.2,42.399]
[1744785837438,1.27761593,1577.3,1577.2,43.66717]
[1744785837626,1.27761593,1577.3,1577.2,46.87497]
[1744785838032,0.00952593,1577.3,1577.2,46.87497]
[1744785839135,1.27761593,1577.3,1577.2,46.87497]
[1744785843036,0.00952593,1577.3,1577.2,46.87497]
[1744785848751,1.27761593,1577.3,1577.2,46.87497]
[1744785850341,1.27761593,1577.3,1577.2,43.66717]
[1744785852544,0.00952593,1577.3,1577.2,43.66717]
[1744785853043,0.00952593,1577.3,1577.2,46.87497]
[1744785859256,1.27761593,1577.3,1577.2,46.87497]
[1744785860357,0.00952593,1577.3,1577.2,46.87497]
[1744785860757,0.00952593,1577.3,1577.2,43.66717]
[1744785860956,0.00952593,1577.3,1577.2,46.87497]
[1744785861156,0.00952593,1577.3,1577.2,43.66717]
[1744785861654,0.00952593,1577.3,1577.2,46.87497]
[1744785862258,0.00952593,1577.3,1577.2,43.66717]
[1744785862860,0.00952593,1577.3,1577.2,46.87497]
[1744785863856,0.00952593,1577.3,1577.2,51.43897]
[1744785865957,1.27761593,1577.3,1577.2,51.43897]
[1744785866756,1.27761593,1577.3,1577.2,46.87497]
[1744785867066,1.27761593,1577.3,1577.2,45.6068]
[1744785867258,2.88421593,1577.3,1577.2,45.6068]
[1744785867458,2.88421593,1577.3,1577.2,46.87497]
[1744785868454,2.88421593,1577.3,1577.2,44.0078]
[1744785870464,2.88421593,1577.3,1577.2,45.27597]
[1744785870764,2.88421593,1577.3,1577.2,44.0078]
[1744785870966,2.88421593,1577.3,1577.2,45.27597]
[1744785872467,2.88421593,1577.3,1577.2,44.0078]
[1744785872666,2.88421593,1577.3,1577.2,45.27597]
[1744785872865,2.88421593,1577.3,1577.2,46.94577]
[1744785873064,1.27761593,1577.3,1577.2,46.94577]
[1744785873263,0.00952593,1577.3,1577.2,46.94577]
[1744785873566,1.27761593,1577.3,1577.2,46.94577]
[1744785877869,1.27761593,1577.3,1577.2,45.6776]
[1744785878065,8.03201593,1577.3,1577.2,3.2078]
[1744785878471,3.03201593,1577.3,1577.2,3.2078]
[1744785882577,1.26817,1577.2,1577.1,43.65785]
[1744785882872,3.03027,1577.2,1577.1,46.86565]
[1744785883171,0.00952593,1577.3,1577.2,1.26817]
[1744785883362,0.00952593,1577.3,1577.2,3.69157]
[1744785885675,1.27761593,1577.3,1577.2,3.69157]
[1744785892978,0.00952593,1577.3,1577.2,3.69157]
[1744785894887,1.27761593,1577.3,1577.2,3.69157]
[1744785895078,0.00952593,1577.3,1577.2,3.69157]
[1744785895479,1.27761593,1577.3,1577.2,3.69157]
[1744785898198,1.27761593,1577.3,1577.2,1.5897]
[1744785898394,1.27761593,1577.3,1577.2,4.7975]
[1744785898594,1.27761593,1577.3,1577.2,6.06567]
[1744785900394,1.27761593,1577.3,1577.2,4.7975]
[1744785900798,4.62991593,1577.3,1577.2,4.7975]
[1744785901995,3.76121593,1577.3,1577.2,6.06567]
[1744785902199,1.27761593,1577.3,1577.2,6.06567]
[1744785902700,0.00952593,1577.3,1577.2,6.06567]
[1744785902897,1.26802,1577.5,1577.2,11.06567]
[1744785903100,1.26805,1577.4,1577.3,4.62672]
[1744785903298,1.268,1577.5,1577.4,1.26798]
[1744785908004,1.268,1577.5,1577.3,1.6454]
[1744785908304,1.26801,1577.4,1577.3,2.91344]
[1744785909799,1.26801,1577.4,1577.3,1.6454]
[1744785910207,1.26809,1577.3,1577.2,4.47592]
[1744785910408,1.26809,1577.3,1577.2,5.32262]
[1744785911101,4.02355593,1577.6,1577.2,4.0545]
[1744785911302,0.00952593,1577.6,1577.5,1.26793]
[1744785911502,0.00952593,1577.6,1577.5,2.07333]
[1744785911804,10.45280168,1577.9,1577.8,1.26768]
[1744785912005,11.72040168,1577.9,1577.8,4.47548]
[1744785912911,10.45280168,1577.9,1577.8,4.47548]
[1744785914009,1.26755,1578.0,1577.9,1.2676]
[1744785914204,1.26755,1578.0,1577.9,2.0678]
[1744785914714,1.26755,1578.0,1577.9,0.8002]
[1744785915211,1.26755,1578.0,1577.9,2.0678]
[1744785915412,1.26755,1578.0,1577.9,2.905]
[1744785916110,1.26755,1578.0,1577.9,4.6464]
[1744785916614,1.26755,1578.0,1577.9,3.3788]
[1744785916817,1.26755,1578.0,1577.9,4.6464]
[1744785917309,1.26755,1578.0,1577.9,1.7414]
[1744785917512,1.2676,1577.9,1577.8,0.00952593]
[1744785917815,1.26776,1577.7,1577.6,3.2078]
[1744785919009,1.26776,1577.7,1577.6,4.86]
[1744785922615,1.26784,1577.6,1577.5,0.00952593]
[1744785923613,1.26809,1577.3,1577.2,1.7544]
[1744785923816,1.26809,1577.3,1577.2,3.02257]
[1744785924017,1.26809,1577.3,1577.2,1.7544]
[1744785925009,1.26809,1577.3,1577.2,3.02257]
[1744785926815,1.26798,1577.5,1577.4,1.26794]
[1744785927318,1.26798,1577.5,1577.4,4.58404]
[1744785927816,7.20391,1577.6,1577.5,1.26793]
[1744785928320,7.20391,1577.6,1577.5,2.90323]
[1744785928723,1.26784,1577.6,1577.5,6.11103]
[1744785932520,1.2678,1577.7,1577.6,1.26776]
[1744785932825,1.27727593,1577.8,1577.7,1.26776]
[1744785933421,1.27727593,1577.8,1577.7,1.619]
[1744785933821,1.27727593,1577.8,1577.7,3.3173]
[1744785935025,1.27727593,1577.8,1577.7,4.58506]
[1744785935525,1.27727593,1577.8,1577.7,7.79286]
[1744785936118,0.00952593,1577.8,1577.7,7.79286]
[1744785936320,0.00952593,1577.8,1577.7,12.34086]
[1744785936622,0.46066,1578.1,1578.0,1.26752]
[1744785936828,0.46066,1578.1,1578.0,4.47532]
[1744785937030,0.46066,1578.1,1578.0,9.02332]
[1744785937528,0.46066,1578.1,1578.0,10.69252]
[1744785938216,0.46066,1578.1,1578.0,51.49252]
[1744785940328,1.7281,1578.1,1578.0,51.49252]
[1744785941228,0.00952593,1578.2,1578.1,1.26744]
[1744785941427,0.00952593,1578.2,1578.1,2.93044]
[1744785942026,0.00952593,1578.2,1578.1,43.73044]
[1744785943430,0.00952593,1578.2,1578.1,46.93824]
[1744785948339,1.26696,1578.7,1578.6,6.97408]
[1744785948532,1.26696,1578.7,1578.6,5.7071]
[1744785948734,3.01223,1578.8,1578.6,4.878]
[1744785948935,3.01223,1578.8,1578.7,1.6702]
[1744785949229,11.71949168,1579.1,1579.0,1.26672]
[1744785949536,11.71949168,1579.1,1578.7,2.93711]
[1744785949537,15.36473168,1579.1,1578.7,2.93711]
[1744785949835,3.01202,1579.0,1578.9,0.00952593]
[1744785950231,1.26696,1578.7,1578.6,3.2078]
[1744785950937,1.26719,1578.5,1578.4,1.26718]
[1744785951438,1.2672,1578.4,1578.3,10.72055593]
[1744785951945,1.2672,1578.4,1578.3,9.45332593]
[1744785952236,1.2672,1578.4,1578.3,0.00952593]
[1744785952636,1.26736,1578.2,1578.1,40.8]
[1744785953131,1.26752,1578.0,1577.9,11.02072997]
[1744785953841,1.7534,1578.0,1577.9,53.08832997]
[1744785954137,3.02092,1578.0,1577.9,50.95502997]
[1744785954332,3.85622,1578.0,1577.9,50.95502997]
[1744785955433,3.02092,1578.0,1577.9,52.22262997]
[1744785956732,3.02092,1578.0,1577.9,43.8123]
[1744785956733,1.26752,1578.0,1577.9,43.8123]
[1744785956931,0.8641,1578.1,1578.0,1.26752]
[1744785956932,3.00267,1578.1,1578.0,1.26752]
[1744785957132,3.00267,1578.1,1578.0,3.75472]
[1744785957340,3.00267,1578.1,1578.0,2.4872]
[1744785957639,3.00267,1578.1,1578.0,3.75472]
[1744785958142,1.26747,1578.1,1578.0,3.75472]
[1744785958339,1.26747,1578.1,1578.0,6.96252]
[1744785960542,1.26747,1578.1,1578.0,5.695]
[1744785960845,2.96627,1578.1,1578.0,6.96252]
[1744785961442,2.96627,1578.1,1578.0,5.695]
[1744785962943,2.96627,1578.1,1578.0,6.96252]
[1744785963342,1.26747,1578.1,1578.0,7.76652]
[1744785964245,1.26743,1578.2,1578.1,1.26744]
[1744785964448,1.26743,1578.2,1578.1,2.86854]
[1744785966946,1.26744,1578.1,1578.0,4.868]
[1744785967142,2.11534,1578.1,1578.0,5.6982]
[1744785967645,2.11534,1578.1,1578.0,46.4982]
[1744785968740,2.11534,1578.1,1578.0,47.76572]
[1744785968944,5.936,1578.4,1578.0,49.66685]
[1744785969145,1.26736,1578.2,1578.1,1.7169]
[1744785970148,2.94626,1578.2,1578.1,1.7169]
[1744785972141,1.26744,1578.1,1578.0,40.8]
[1744785972343,6.19094,1578.1,1578.0,40.8]
[1744785972746,2.98314,1578.1,1578.0,40.8]
[1744785978951,1.26744,1578.1,1578.0,0.7956]
[1744785979455,1.26744,1578.1,1578.0,41.5956]
[1744785979647,1.26744,1578.1,1578.0,43.2102]
[1744785979849,1.26744,1578.1,1578.0,44.47772]
[1744785980453,5.936,1578.2,1578.1,1.26744]
[1744785980653,7.20336,1578.2,1578.1,3.75724]
[1744785980854,5.936,1578.2,1578.1,3.75724]
[1744785984157,7.20336,1578.2,1578.1,3.75724]
[1744785984349,1.26736,1578.2,1578.1,3.75724]
[1744785987754,1.26736,1578.2,1578.1,2.4898]
[1744785989062,1.26744,1578.1,1578.0,44.8034]
[1744785989249,2.12394,1578.1,1578.0,46.5267]
[1744785989453,2.12394,1578.1,1578.0,45.7311]
[1744785990155,1.26744,1578.1,1578.0,46.99862]
[1744785992160,5.936,1578.3,1578.0,46.99862]
[1744785992363,1.26744,1578.2,1578.1,2.9861]
[1744785992564,1.26744,1578.2,1578.1,1.7187]
[1744785993757,1.26744,1578.2,1578.1,2.98614]
[1744785994365,1.26744,1578.2,1578.1,1.7187]
[1744785994666,1.26744,1578.2,1578.1,2.98614]
[1744785995762,1.26744,1578.2,1578.1,1.7187]
[1744785996466,1.26744,1578.2,1578.1,2.98614]
[1744785997463,1.26744,1578.1,1578.0,40.8]
[1744785997759,1.26752,1578.0,1577.9,1.6387]
[1744785997966,1.26752,1578.0,1577.9,2.5437]
[1744785998166,1.26752,1578.0,1577.9,44.1471]
[1744785999185,1.26752,1578.0,1577.9,45.4147]
[1744785999386,1.26752,1578.0,1577.9,44.1471]
[1744786000481,1.26752,1578.0,1577.9,45.4147]
[1744786000875,10.85669,1578.2,1578.0,1.26751]
[1744786000876,1.26751,1578.1,1578.0,1.26751]
[1744786001070,1.26751,1578.1,1578.0,4.47531]
[1744786001382,1.26751,1578.1,1578.0,3.2078]
[1744786001683,1.26752,1578.0,1577.9,42.4046]
[1744786003879,1.26752,1578.0,1577.9,43.6722]
[1744786004077,1.26752,1578.0,1577.9,42.4046]
[1744786004285,1.26752,1578.0,1577.9,43.6722]
[1744786004484,1.26751,1578.1,1578.0,1.2675]
[1744786005487,1.26752,1578.0,1577.9,43.67215]
[1744786008795,1.26752,1578.0,1577.9,46.87995]
[1744786009795,1.26752,1578.0,1577.9,45.6124]
[1744786013001,1.26752,1578.0,1577.9,46.88]
[1744786013799,1.26751,1578.1,1578.0,1.26747]
[1744786015004,1.26752,1578.0,1577.9,46.87994]
[1744786016001,1.26751,1578.1,1578.0,1.26748]
[1744786016303,1.26751,1578.1,1578.0,1.7237]
[1744786021802,1.26751,1578.1,1578.0,2.99122]
[1744786022300,7.20331,1578.3,1578.2,1.26736]
[1744786022706,7.20331,1578.3,1578.2,1.7421]
[1744786023912,7.20331,1578.3,1578.0,1.6078]
[1744786023913,1.26744,1578.1,1578.0,1.6078]
[1744786024112,1.26744,1578.1,1578.0,3.2056]
[1744786025811,2.90054,1578.1,1578.0,3.2056]
[1744786026107,1.26744,1578.1,1578.0,4.47312]
[1744786031510,1.26744,1578.1,1578.0,3.2056]
[1744786032415,1.26752,1578.0,1577.9,44.0078]
[1744786032608,1.2676,1577.9,1577.8,0.00952593]
[1744786032915,7.2036,1577.9,1577.8,0.00952593]
[1744786033213,13.9483,1577.9,1577.8,0.00952593]
[1744786033609,14.42448443,1577.9,1577.8,0.00952593]
[1744786036016,1.26784,1577.6,1577.5,1.6984]
[1744786036214,1.26809,1577.3,1577.2,3.2078]
[1744786036415,1.26809,1577.3,1577.2,4.9503]
[1744786039314,1.26809,1577.3,1577.2,1.7425]
[1744786039512,1.26817,1577.2,1577.1,0.00952593]
[1744786039718,2.96177,1577.2,1577.1,0.00952593]
[1744786040015,1.26817,1577.2,1577.1,1.68422593]
[1744786040410,2.96177,1577.2,1577.1,1.68422593]
[1744786040609,3.84117,1577.2,1577.1,1.68422593]
[1744786044022,1.26817,1577.2,1577.1,1.68422593]
[1744786044217,5.94552593,1577.4,1577.1,4.89202593]
[1744786044412,0.00952593,1577.4,1577.3,4.47589]
[1744786044615,0.00952593,1577.4,1577.3,5.28869]
[1744786044920,0.00952593,1577.4,1577.3,12.04119]
[1744786045314,0.00952593,1577.4,1577.3,16.56419]
[1744786045513,0.00952593,1577.4,1577.3,57.36419]
[1744786048020,0.00952593,1577.4,1577.3,52.36419]
[1744786049319,1.27753593,1577.4,1577.3,52.36419]
[1744786050124,1.27753593,1577.4,1577.3,51.0961]
[1744786050326,1.27753593,1577.4,1577.3,52.36419]
[1744786050624,1.27753593,1577.4,1577.3,47.84119]
[1744786051525,1.27753593,1577.4,1577.3,44.63339]
[1744786051722,1.27753593,1577.4,1577.3,47.84119]
[1744786052321,0.00952593,1577.4,1577.3,47.84119]
[1744786052728,1.27753593,1577.4,1577.3,47.84119]
[1744786053316,0.00952593,1577.4,1577.3,47.84119]
[1744786053820,1.27753593,1577.4,1577.3,47.84119]
[1744786054532,0.00952593,1577.4,1577.3,47.84119]
[1744786057434,1.27753593,1577.4,1577.3,47.84119]
[1744786058127,0.00952593,1577.4,1577.3,52.84119]
[1744786058329,1.26764,1577.9,1577.8,1.2676]
[1744786059437,1.26764,1577.9,1577.8,3.0208]
[1744786060535,1.27709593,1578.0,1577.9,1.2676]
[1744786060730,1.27709593,1578.0,1577.9,2.864]
[1744786061035,1.27709593,1578.0,1577.9,43.664]
[1744786061834,0.00952593,1578.0,1577.9,43.664]
[1744786062040,5.936,1578.4,1578.3,1.26728]
[1744786062238,5.936,1578.4,1578.0,3.16881]
[1744786062239,1.26728,1578.3,1578.2,1.2673]
[1744786062928,1.26728,1578.3,1578.2,2.8637]
[1744786063143,1.26728,1578.3,1578.2,1.5964]
[1744786063336,1.26728,1578.3,1578.2,2.86376]
[1744786063834,1.26728,1578.3,1578.2,1.5964]
[1744786064639,2.89028,1578.3,1578.2,1.5964]
[1744786065238,2.12509593,1578.4,1578.2,2.86376]
[1744786065444,0.85782593,1578.4,1578.2,2.8637]
[1744786065640,2.12502593,1578.4,1578.3,1.7512]
[1744786065839,3.74802593,1578.4,1578.3,1.7512]
[1744786072949,1.26736,1578.2,1578.1,0.00952593]
[1744786073147,1.26736,1578.2,1578.1,2.97886593]
[1744786073540,1.26736,1578.2,1578.1,1.71142593]
[1744786082651,1.26736,1578.2,1578.1,0.00952593]